Cogmind - Beta 14 @@@ ROGUE MODE // 2025.01.13 @ 19:17:18 Player: puppuppit Result: Destroyed by G-34 Mercenary with Small Laser Performance ------------- Evolutions (0) 0 Regions Visited (1) 200 Robots Destroyed (27) 135 Value Destroyed (502) 502 Prototype IDs (2) 40 Alien Tech Used (0) 0 Bonus (0) 0 TOTAL SCORE: 877 Bonus ------- None Cogmind --------- Core Integrity 0/250 Matter 300/300 Energy 125/125 System Corruption 0% Temperature Cool (66) Movement Hovering (56) Location -10/Materials Parts ------- > --- POWER (1) -------- Light Ion Engine > --- PROPULSION (2) --- Hover Unit Hover Unit > --- UTILITY (2) ------ Heat Sink Propulsion Shielding > --- WEAPON (2) ------- Medium Laser Small Laser > --- INVENTORY (5) ---- Wheel Hover Unit Hover Unit Small Laser Beam Cannon Peak State ------------ > --- POWER ------------ Ion Engine > --- PROPULSION ------- Hover Unit Hover Unit > --- UTILITY ---------- Heat Sink Propulsion Shielding > --- WEAPON ----------- Small Laser Particle Gun > --- INVENTORY -------- Hover Unit [Rating: 8] Favorites ----------- Power Light Ion Engine Engine Light Ion Engine Propulsion Hover Unit Wheel Wheel Hover Unit Hover Unit Utility Propulsion Shielding Device Heat Sink Storage Small Storage Unit Protection Propulsion Shielding Weapon Particle Gun Energy Gun Particle Gun Ballistic Gun Light Assault Rifle Build | -11 -10 ------- Run | Yrd Mat Slots Evolved . | . . Power . | . . Propulsion . | . . Utility . | . . Weapon . | . . Parts Attached 26 | 6 20 Power 4 | 1 3 Engine 4 | 1 3 Core . | . . Reactor . | . . Propulsion 9 | 2 7 Treads . | . . Leg . | . . Wheel 3 | 2 1 Hover 6 | . 6 Flight . | . . Utility 5 | 1 4 Device 3 | . 3 Storage 1 | 1 . Processor . | . . Hackware . | . . Protection 1 | . 1 Artifact . | . . Weapon 8 | 2 6 Energy Gun 7 | 1 6 Energy Cannon . | . . Ballistic Gun 1 | 1 . Ballistic Cannon . | . . Launcher . | . . Special Weapon . | . . Impact Weapon . | . . Slashing Weapon . | . . Piercing Weapon . | . . Special Melee Weapon . | . . Unidentified Prototypes . | . . Parts Lost 8 | . 8 Power 1 | . 1 Propulsion 3 | . 3 Utility 1 | . 1 Weapon 3 | . 3 Highest Loss Streak 6 | . 6 To Critical Strikes . | . . Average Slot Usage (%) 81 | . 81 Engine 7 | . 7 Wheel 4 | . 4 Hover 20 | . 20 Device 7 | . 7 Storage 4 | . 4 Protection 8 | . 8 Energy Gun 24 | . 24 Ballistic Gun 2 | . 2 Peak Build Rating 8 | 6 8 Average Rating 6 | 4 6 On Entrance 3 | . 6 Naked Turns . | . . Heaviest Build 14 | 11 14 Greatest Support 26 | 26 26 Greatest Overweight (x) 4 | . 4 Average Overweight (x) . | . . Largest Inventory Capacity 8 | 8 8 Average Capacity 6 | 6 6 Most Carried 5 | . 5 Average Carried 2 | . 2 Final Capacity 8 | 8 5 Final Carried 5 | . 5 Class Distribution -------------------- 74% | Mutant 25% | Scavenger-Mutant Dominant Class ---------------- Mutant | -10/Materials Resources | -11 -10 ----------- Run | Yrd Mat Matter Collected 439 | . 439 Remotely 249 | . 249 Salvage Created 727 | . 727 Parts 50 | . 50 Haulers Intercepted 1 | . 1 Recyclers Shooed 1 | . 1 Parts Field Recycled . | . . Retrieved Matter . | . . Parts Self-Destructed . | . . Prevented . | . . Kills | -11 -10 ------- Run | Yrd Mat Combat Hostiles Destroyed 15 | . 15 Guns 14 | . 14 Classes Destroyed 8 | . 8 Worker 4 | . 4 Builder 2 | . 2 Hauler 1 | . 1 Recycler 1 | . 1 Operator 1 | . 1 Watcher 3 | . 3 Swarmer 5 | . 5 Grunt 10 | . 10 Best Kill Streak 9 | . 9 Combat Bots Only 4 | . 4 Max Kills in Single Turn 1 | . 1 Gunslinging . | . . Exploded . | . . Melee . | . . Uniques/NPCs Destroyed . | . . Combat | -11 -10 -------- Run | Yrd Mat Hostile Shots Fired 84 | . 84 Missed 20 | . 20 Damage Taken 781 | . 781 Core 255 | . 255 Absorbed by Shields . | . . Redirected to Shielding 13 | . 13 Core Remaining (%) 100 | 100 . Volleys Fired 80 | . 80 Largest 2 | . 2 Hottest 115 | . 115 Shots Fired 150 | . 150 Gun 150 | . 150 Cannon . | . . Launcher . | . . Special . | . . Kinetic 19 | . 19 Thermal 118 | . 118 Explosive . | . . Electromagnetic 13 | . 13 Robot Hit Streak 12 | . 12 Robot Miss Streak 4 | . 4 Penetration Max . | . . Secondary Targets . | . . Shots Hit Robots 101 | . 101 Core Hits 41 | . 41 Critical Kills . | . . Critical Parts Destroyed . | . . Critical Strikes 2 | . 2 Burn 2 | . 2 Melee Attacks . | . . Impact . | . . Slashing . | . . Piercing . | . . Sneak Attacks . | . . Combat Hostiles . | . . Follow-up Attacks . | . . Damage Inflicted 1343 | . 1343 Guns 1343 | . 1343 Cannons . | . . Explosions . | . . Melee . | . . Ramming . | . . Kinetic 116 | . 116 Thermal 1132 | . 1132 Explosive . | . . Electromagnetic 95 | . 95 Impact . | . . Slashing . | . . Piercing . | . . Highest Corruption . | . . Average Corruption . | . . Corruption Purged . | . . Corruption Blocked . | . . Overload Shots . | . . Overflow Damage . | . . Projectiles . | . . Explosions . | . . Melee . | . . Knockbacks . | . . Impact . | . . Kinetic . | . . Secondary . | . . Self-Inflicted Damage . | . . Shots . | . . Rammed . | . . Targets Rammed . | . . Kicked . | . . Crushed . | . . Highest Temperature 300 | . 300 Average Temperature 61 | . 61 Received Heat Transfer 420 | . 420 Effects 1 | . 1 Interference 1 | . 1 Siege Activations . | . . Robots Corrupted . | . . Combat Hostiles . | . . Parts Fried . | . . Impact Corruptions . | . . Robots Melted 1 | . 1 Combat Hostiles 1 | . 1 Parts Melted 3 | . 3 Heat Transferred 2918 | . 2918 Parts Sabotaged . | . . Parts Stolen . | . . Parts Stripped . | . . Power Chain Reactions . | . . Alert | -11 -10 ------- Run | Yrd Mat Peak Influence 347 | . 347 Initial . | . . Average 101 | . 106 Maximum Alert Level 1 | . 1 Low Security (%) 89 | 100 88 Level 1 10 | . 11 Level 2 . | . . Level 3 . | . . Level 4 . | . . Level 5 . | . . High Security . | . . Max Security . | . . Squads Dispatched 3 | . 3 Investigation 2 | . 2 Extermination . | . . Reinforcement 1 | . 1 Assault . | . . Garrison . | . . Intercept . | . . Searches Triggered . | . . Construction Impeded . | . . Haulers Reinforced . | . . Active Scanning Responses . | . . Cargo Convoy Interrupts . | . . Stealth | -11 -10 --------- Run | Yrd Mat Distress Signals 2 | . 2 Communications Jammed . | . . Distress Signals . | . . Times Spotted 33 | . 33 Peak Tracking Total 5 | . 5 Tactical Retreats 4 | . 4 Traps | -11 -10 ------- Run | Yrd Mat Traps Triggered 3 | . 3 Indirectly . | . . Trap Hack Attempts . | . . Triggered . | . . Disarmed . | . . Reprogrammed 2 | . 2 Reused 1 | . 1 Traps Extracted . | . . Installed . | . . Triggered 1 | . 1 Machines | -11 -10 ---------- Run | Yrd Mat Machines Disabled 1 | . 1 Max in Single Turn 1 | . 1 Machines Repaired . | . . Machines Dismantled . | . . Machines Sabotaged . | . . Overloaded Fab Kills . | . . Hacking | -11 -10 --------- Run | Yrd Mat Machines Accessed 5 | . 5 Terminals 5 | . 5 Fabricators . | . . Repair Stations . | . . Recycling Units . | . . Scanalyzers . | . . Garrison Access . | . . Total Hacks 19 | . 19 Successful 10 | . 10 Failed 8 | . 8 Catastrophic 3 | . 3 Database Lockouts 1 | . 1 Manual 8 | . 8 Terminals 19 | . 19 Fabricators . | . . Repair Stations . | . . Recycling Units . | . . Scanalyzers . | . . Garrison Access . | . . Terminal Hacks 10 | . 10 Robot Analysis 2 | . 2 Prototype ID Bank 1 | . 1 Branch Access Points 1 | . 1 Emergency Access Points 1 | . 1 Terminal Index 1 | . 1 Alert Level 1 | . 1 Unreport Threat 1 | . 1 Reprogram Traps 2 | . 2 Fabricator Hacks . | . . Repair Station Hacks . | . . Recycling Unit Hacks . | . . Scanalyzer . | . . Garrison Access Hacks . | . . Unauthorized Hacks . | . . Terminals . | . . Fabricators . | . . Repair Stations . | . . Recycling Units . | . . Scanalyzers . | . . Garrison Access . | . . Data Cores Recovered . | . . Used . | . . Hacking Detections 3 | . 3 Full Trace Events 1 | . 1 Feedback Events . | . . Feedback Blocked . | . . Robot Schematics Acquired . | . . Robots Built . | . . Authchips . | . . Time . | . . Total Robot Build Rating . | . . Part Schematics Acquired . | . . Parts Built . | . . Authchips . | . . Time . | . . Total Part Build Rating . | . . Parts Repaired . | . . Time . | . . Parts Recycled . | . . Recycled Matter . | . . Retrieved Matter . | . . Retrieved Components . | . . Parts Scanalyzed . | . . Part Schematics Acquired . | . . Parts Damaged . | . . Bothacking | -11 -10 ------------ Run | Yrd Mat Used RIF Installer . | . . Robots Hacked . | . . Non-combat . | . . Combat . | . . Robot Hacks Applied . | . . Relay Couplers Released . | . . Fabnet Peak Effective % . | . . Robots Rewired . | . . Allies Hacked . | . . Hacks Repelled . | . . Allies | -11 -10 -------- Run | Yrd Mat Total Allies . | . . Largest Group . | . . Highest-Rated Group . | . . Highest-Rated Ally . | . . Total Orders . | . . Ally Attacks . | . . Total Damage . | . . Kills . | . . Allies Corrupted . | . . Allies Melted . | . . Intel | -11 -10 ------- Run | Yrd Mat Robot Analysis Total 2 | . 2 Derelict Logs Recovered . | . . Drone Launches . | . . Drone Recoveries . | . . Exploration | -11 -10 ------------- Run | Yrd Mat Turns Passed 702 | 38 664 Spaces Moved 582 | 33 549 Core 14 | 1 13 Treads . | . . Legs . | . . Wheels 97 | 32 65 Hover 471 | . 471 Flight . | . . Fastest Speed 50 | 50 56 Average Speed 64 | 89 63 Slowest Speed 250 | 100 250 Overloaded Moves . | . . Propulsion Burnouts . | . . Robots Hopped . | . . Cave-ins Triggered . | . . Exploration Rate (%) 36 | 3 70 Regions Visited 1 Branch Regions . Pre-discovered Areas . | . . Known Exits Taken . | . . Unknown Exits Taken 1 | 1 . Scrap Searched . | . . Spaces Dug . | . . Terrain Destroyed . | . . Melee . | . . Projectile . | . . AOE . | . . Terrain Rammed . | . . Walls Destroyed . | . . Machines Disabled . | . . Actions | -11 -10 --------- Run | Yrd Mat Total 754 | 38 716 Wait 51 | . 51 Move 581 | 32 549 Hop . | . . Pick Up 10 | . 10 Fast Attach 20 | 6 14 Attach 3 | . 3 Detach . | . . Swap 3 | . 3 Drop 6 | . 6 Fire 80 | . 80 Melee . | . . Ram . | . . Kick . | . . Crush . | . . Escape Stasis . | . . Rewire . | . . Trap . | . . Miscellaneous . | . . Route ------- -11/Scrapyard -10/Materials (discovered 4 exits: [*Mat x2] / *Min x2) History --------- Turn | Location | Event 26 | -11/Scrapyard | Discovered new exit (range 16) 39 | -11/Scrapyard | Entered Materials 45 | -10/Materials | Discovered new exit (range 15) 47 | -10/Materials | Central database locked down 88 | -10/Materials | Discovered new exit (range 16) 162 | -10/Materials | Core integrity fell below 50% 194 | -10/Materials | Lost 6 parts (1p2n1u2w) 320 | -10/Materials | Identified exit to Mines 334 | -10/Materials | Discovered new exit (range 10) 570 | -10/Materials | Core integrity fell below 20% 678 | -10/Materials | Discovered new exit (range 11) 703 | -10/Materials | Destroyed by G-34 Mercenary with Small Laser Last Messages --------------- 00603_ K-01 Serf collects debris. 00604_ K-01 Serf suffers critical hit (Burn). 00604_ K-01 Serf destroyed. 00607_ Destroyed Hover Unit. 00610_ W-16 Scout destroyed. 00628_ S-10 Pest destroyed. 00638_ R-06 Scavenger collects Aluminum Leg. 00650_ Acquired Hover Unit. 00660_ Dropped Hover Unit. 00660_ Acquired Hover Unit. 00664_ Dropped Wheel. 00665_ Acquired Wheel. 00667_ Dropped Wheel. 00668_ Acquired Hover Unit. 00674_ Triggered Alarm Trap. 00674_ An alarm sounds. 00674_ ALERT: Alarm triggered, dispatching investigation squad. 00678_ EXIT=FOUND 00682_ S-10 Pest destroyed. 00700_ G-34 Mercenary heat short circuits Sml. Laser. Map ----- +----------------------------------------------------+ | #### ##????????????????????????????????? | | # #######???????????????????????????? | | # # #??????????? ???????????????? | | # # #??????????? ???????????????? | | # # ###########? ???????????????? | | # # # #? ???????????????? | | #+## #= # = #? ???????????????? | | ! %+ # """ #? #??????????????? | | % !# # """"" #? #??????????????? | | = # # """"" ## #??????????????? | | ###### # """"" ## #??????????????? | | #????# # """ ## #??????????????? | | % #????# # ## #??????????????? | | !#################+##### #??????????????? | | #??????????????? | | ! #??????????????? | | ==[ !%* #??????????????? | | %%##################### #??????????????? | | *#???????????????????# #??????????????? | | =*#???????????????????# #??????????????? | | +#####?????????######## #######/####???? | | %[ #?????????# #???? | | """" #?????????+ < #???? | | """" #?????????# *g #???? | | """" #?????????#########g########+####???? | | #????????????# [=@ #????????????? | | """" #????????????# = #????????????? | | """" #????????????# """ """ #????????????? | | """" #????????????# """ """ #????????????? | | ??????????????# """ """ #????????????? | | ####??????????????# """ """ #????????????? | | ??????????????????? """ """ #????????????? | | ???????????????????? ????#????????????? | | ??????????????????????##?????????????????? | | | | | | | | | | | | | | | | | | | | | | | | | | | | | | | | | +----------------------------------------------------+ Best States ------------- Heat Dissipation 35 Energy Generation 10 Energy Capacity 250 Matter Stores 300 Matter Capacity 300 Sight Range 16 Terrain Scan Density 10 Propulsion Shielding 33 Evasion (%) 53 Item Schematics ----------------- None Robot Schematics ------------------ None Fabricated ------------ Nothing Alien Tech Used ----------------- None Achievements -------------- None Challenges ------------ None Game ------ Seed LatentGuidanceDevice Manual? 0 Play Time 00:13:33 Cumulative 24.4 hours Start 2025.01.13 @ 19:10:17 End 2025.01.13 @ 19:17:18 Sessions 1 Manual Loads 0 Difficulty Rogue Special Mode None Game No. 18 Rogue 18 Adventurer 0 Explorer 0 Win Type - Total 0 Types 0/0/0/0/0/0/0/0/0 Lore% 17 Gallery% 24 Achievement% 32 Wizard Run 0 Options --------- Layout 0 ASCII 0 Keyboard 1 Movement Arrows Keybinds 0 Fullscreen 1 Font 12/Proggy Map View 83x54 Zoom Use 0% Tactical HUD 1 Map Filters NONE Filters NONE Steam 0 RUN: 75c670d5-aa35-4ad7-a9ef-9c912d0b797d